bitfinex/quotes_ETHUSD_20241217
["timestamp","ask_amount","ask_price","bid_price","bid_amount"]
[1734450714177,0.43420911,3936.4,3935.1,0.55]
[1734450714356,0.43420911,3936.4,3930.2,0.25]
[1734450714357,1.1373,3934.6,3930.2,0.25]
[1734450714554,1.1373,3934.6,3929.9,1.57965452]
[1734450714555,4.49058263,3934.5,3931.0,0.013]
[1734450714749,4.49058263,3934.5,3931.0,4.00769368]
[1734450714750,0.85829242,3934.4,3931.0,4.00769368]
[1734450714975,0.07802835,3934.3,3931.0,4.00769368]
[1734450715184,0.07802835,3934.3,3931.1,0.45076937]
[1734450715386,0.04624781,3934.3,3932.3,4.00769368]
[1734450715612,0.07802448,3934.3,3931.7,4.00769368]
[1734450715808,0.22518106,3934.2,3931.7,4.00769368]
[1734450716109,0.36210319,3934.1,3931.8,0.40076937]
[1734450717459,0.45332411,3933.0,3930.5,0.43126442]
[1734450717651,1.18354781,3933.3,3930.5,0.43126442]
[1734450717652,1.18354781,3933.3,3931.0,4.00769368]
[1734450718087,0.03178741,3933.2,3931.0,4.00769368]
[1734450718283,0.04624781,3933.1,3931.0,4.00769368]
[1734450718496,0.12955347,3932.9,3931.0,4.00769368]
[1734450718911,0.12955347,3932.9,3931.1,3.0]
[1734450719113,0.12955347,3932.9,3931.2,0.70076937]
[1734450719278,0.04624781,3933.1,3931.2,0.70076937]
[1734450719811,0.04624781,3933.1,3931.3,0.55]
[1734450720379,0.04624781,3933.1,3931.8,0.55]
[1734450721516,1.1373,3933.9,3932.0,0.55]
[1734450721844,1.01613,3935.0,3932.2,0.55]
[1734450722119,2.54144,3934.8,3932.2,0.55]
[1734450722322,1.01613,3935.0,3932.2,0.55]
[1734450722323,0.0780282,3934.7,3932.2,0.55]
[1734450722676,0.03178386,3934.6,3932.2,0.55]
[1734450723015,0.03178386,3934.6,3932.1,0.75576937]
[1734450723016,4.19904781,3934.5,3932.1,0.75576937]
[1734450723215,4.19904781,3934.5,3931.9,3.0]
[1734450723216,0.75486424,3934.4,3931.9,3.0]
[1734450723547,0.75486424,3934.4,3931.4,3.0]
[1734450723548,0.12711412,3933.7,3931.4,3.0]
[1734450724030,0.12711412,3933.7,3931.5,0.55]
[1734450724227,0.12711412,3933.7,3931.4,3.0]
[1734450724228,0.04624781,3933.6,3931.4,3.0]
[1734450724525,0.03178652,3933.5,3931.3,4.00769368]
[1734450724815,0.04624781,3933.5,3931.4,0.0127147]
[1734450725033,0.04624781,3933.5,3931.5,0.40204084]
[1734450725515,0.078031,3933.5,3931.5,0.40204084]
[1734450725878,0.04624781,3933.5,3931.5,0.40204084]
[1734450726081,0.04624781,3933.5,3932.1,3.55]
[1734450726281,1.1528,3934.5,3932.1,3.55]
[1734450726526,0.5,3936.1,3931.5,0.40204084]
[1734450726527,1.1528,3935.5,3933.4,3.0]
[1734450726742,1.1528,3935.5,3933.5,0.55]
[1734450726743,0.07801822,3935.4,3933.5,0.55]
[1734450727516,0.04624781,3935.3,3933.5,0.55]
[1734450727728,0.12930924,3934.8,3933.5,0.55]
[1734450727943,0.03177261,3935.2,3933.5,0.55]
[1734450728084,0.03177261,3935.2,3932.9,3.0]
[1734450728280,0.04624781,3935.1,3932.4,3.0]
[1734450728537,0.03177625,3935.0,3932.5,0.55]
[1734450728745,3.04624781,3934.9,3932.5,0.55]
[1734450729042,3.0,3932.6,3929.8,0.1293]
[1734450729266,0.07804704,3932.5,3930.4,0.013]
[1734450729391,0.50113264,3932.4,3930.4,0.013]
[1734450729594,0.04624781,3932.3,3930.4,0.013]
[1734450729917,3.0317957,3932.2,3930.4,0.013]
[1734450730128,0.04624781,3932.1,3930.4,0.013]
[1734450731361,0.04624781,3932.1,3930.5,4.00769368]
[1734450731513,0.04624781,3932.1,3930.6,0.02572432]
[1734450731722,1.1528,3932.6,3930.8,0.1293]
[1734450732450,1.1528,3932.6,3930.9,0.55]
[1734450732634,0.2568152,3932.5,3930.1,0.1293]
[1734450732843,1.1528,3932.6,3930.1,0.1293]
[1734450732844,0.22502476,3932.4,3930.8,0.013]
[1734450733038,1.18459588,3932.6,3930.4,0.01273342]
[1734450733039,0.04624781,3932.3,3930.4,0.01273342]
[1734450733258,0.04624781,3932.3,3930.5,0.43126518]
[1734450733412,0.22551197,3932.2,3930.5,0.43126518]
[1734450733869,0.22551197,3932.2,3930.6,0.55]
[1734450734162,0.22551197,3932.2,3930.7,0.013]
[1734450735164,0.48407631,3932.1,3930.7,0.013]
[1734450735488,0.48407631,3932.1,3927.4,1.21177939]
[1734450735489,2.54439,3930.3,3927.4,1.21177939]
[1734450735632,1.1528,3930.1,3927.6,1.29641069]
[1734450735836,0.84417896,3930.0,3927.7,1.27847912]
[1734450736187,1.1528,3930.1,3928.0,1.27435657]
[1734450736316,0.81799758,3929.9,3928.1,0.01275967]
[1734450736517,0.2272227,3929.8,3928.1,0.01275967]
[1734450736766,1.1528,3930.1,3928.5,4.00769368]
[1734450736967,1.1528,3930.1,3928.2,0.52948099]
[1734450736968,1.01747116,3930.8,3929.2,4.00769368]
[1734450737120,0.45472578,3930.7,3930.3,0.25442]
[1734450737318,0.50097359,3930.6,3930.3,0.25442]
[1734450737552,0.50097359,3930.5,3929.2,4.00769368]
[1734450737752,0.50097359,3930.5,3930.0,0.25445]
[1734450737753,0.27342639,3930.4,3930.0,0.25445]
[1734450737971,0.22762506,3930.5,3928.9,0.25452]
[1734450737972,0.50108241,3930.3,3929.0,0.55]
[1734450738255,0.3642001,3931.1,3928.6,4.17889368]
[1734450738256,1.92411551,3930.2,3929.8,0.25446]
[1734450738457,1.92411551,3930.2,3928.6,4.17889368]
[1734450738458,0.8185677,3930.1,3930.0,0.25445]
[1734450738656,0.4552603,3930.1,3930.0,0.25445]
[1734450739315,0.4552603,3930.1,3929.7,0.25447]
[1734450739518,0.850416,3930.0,3928.6,4.17889368]
[1734450739819,0.850416,3930.0,3927.2,0.50462]
[1734450739820,0.81860955,3929.9,3928.3,0.25456]
[1734450740015,0.81860955,3929.8,3928.8,0.25452]
[1734450740255,0.81860955,3929.7,3928.5,0.25454]
[1734450740427,0.81860955,3929.6,3928.3,0.25456]
[1734450740653,0.77544591,3930.1,3928.0,4.17889368]
[1734450740654,0.45522684,3929.5,3928.5,0.25454]
[1734450740833,0.81860955,3929.4,3928.1,0.0127652]
[1734450741030,0.74363526,3929.9,3928.6,0.25454]
[1734450741031,0.45522684,3929.3,3928.6,0.25454]
[1734450741232,0.22717858,3929.2,3928.6,0.25454]
[1734450741472,0.12908956,3929.9,3928.6,0.25454]
[1734450741770,0.82006295,3929.8,3928.6,0.25454]
[1734450742066,0.9529448,3929.7,3928.7,0.25453]
[1734450742227,0.45558358,3929.6,3928.1,3.0]
[1734450742428,0.45558358,3929.5,3928.1,3.0]
[1734450742667,0.45558358,3929.4,3928.2,0.55]
[1734450742845,1.51462803,3929.3,3928.2,0.55]
[1734450743041,1.51462803,3929.3,3927.4,4.17889368]
[1734450743042,0.9712702,3929.2,3928.1,0.25456]
[1734450743371,0.9712702,3929.2,3927.6,0.2546]
[1734450743372,0.85162543,3929.1,3927.6,0.2546]
[1734450743684,0.45532803,3929.0,3928.5,0.25454]
[1734450743858,0.36447937,3929.1,3927.7,0.0127738]
[1734450743859,0.45532803,3928.9,3928.2,0.25456]
[1734450744035,0.22779961,3928.8,3927.7,0.0127738]
[1734450744369,1.0593,3929.3,3927.7,0.0127738]
[1734450744370,0.45548732,3928.7,3928.3,0.25456]
[1734450744578,1.0593,3929.3,3928.4,0.25455]
[1734450744579,0.22770234,3928.6,3928.4,0.25455]
[1734450744870,1.35075149,3929.3,3928.4,0.25455]
[1734450744871,0.22770234,3928.5,3928.4,0.25455]
[1734450745077,0.59202609,3929.1,3928.4,0.25455]
[1734450745370,1.71523086,3929.3,3928.6,0.25454]
[1734450745371,0.45508106,3929.0,3928.6,0.25454]
[1734450745529,0.45508106,3928.9,3928.6,0.25454]
[1734450745729,0.45508106,3928.9,3927.7,0.42750775]
[1734450745730,0.45508693,3928.8,3927.8,0.25459]
[1734450745958,0.2275393,3928.7,3927.8,0.25459]
[1734450746146,0.2275393,3928.6,3927.9,0.25458]
[1734450746349,0.36432375,3929.2,3927.8,0.36948754]
[1734450746635,0.22744343,3929.1,3929.0,0.25451]
[1734450746874,0.22746359,3929.3,3929.2,0.2545]
[1734450747033,0.45487859,3929.3,3928.3,0.25456]
[1734450747247,0.45487859,3929.2,3928.2,0.25456]
[1734450747555,0.45487859,3929.1,3928.5,0.25454]
[1734450747731,0.22744471,3929.0,3928.5,0.25454]
[1734450748076,0.39614075,3929.4,3928.0,0.25457]
[1734450748077,0.45474079,3928.9,3928.1,0.25457]
[1734450748294,0.36432375,3929.3,3928.0,0.25457]
[1734450748295,0.22744471,3928.8,3928.0,0.25457]
[1734450748457,0.22744471,3928.7,3928.3,0.25456]
[1734450748791,0.22744471,3928.6,3928.4,0.25455]
[1734450748998,0.22744471,3928.5,3927.7,0.42750775]
[1734450749296,1.0593,3928.7,3927.0,4.00769368]
[1734450749497,0.45420765,3928.6,3927.1,0.25463]
[1734450749647,0.45420765,3928.5,3928.1,0.25457]
[1734450749851,1.0593,3928.7,3928.1,0.25457]
[1734450750187,1.0593,3928.7,3926.8,0.39191837]
[1734450750188,0.48601468,3928.6,3926.7,0.25466]
[1734450750493,0.62140091,3928.5,3926.7,0.25466]
[1734450750649,0.45419347,3928.4,3927.2,0.25463]
[1734450750845,0.45419347,3928.3,3927.2,0.25463]
[1734450751055,1.31589462,3928.2,3926.5,0.25467]
[1734450751352,1.0888,3926.9,3926.2,0.25469]
[1734450751575,1.0888,3926.9,3924.7,4.26653516]
[1734450751576,0.45418124,3926.8,3924.8,0.0128152]
[1734450751911,0.63985475,3926.7,3925.6,0.25473]
[1734450752088,0.63985475,3926.7,3925.7,0.25473]
[1734450752089,0.18613455,3926.7,3925.7,0.25473]
[1734450752388,0.18613455,3926.7,3925.0,2.39287643]
[1734450752389,1.0888,3926.2,3925.0,2.39287643]
[1734450752585,0.64909571,3926.1,3925.0,2.39287643]
[1734450752791,0.4533658,3926.0,3925.8,0.25472]
[1734450753091,1.21716583,3926.8,3926.3,0.25469]
[1734450753293,1.21716583,3926.8,3925.0,2.39287643]
[1734450753294,0.22653238,3926.7,3925.0,2.39287643]
[1734450753596,0.48489541,3926.7,3925.9,0.25471]
[1734450753756,0.45307883,3926.6,3925.0,2.39287643]
[1734450753954,0.64229122,3926.5,3925.0,2.39287643]
[1734450754193,0.22653238,3926.4,3925.0,2.39287643]
[1734450754441,0.15737149,3926.5,3925.0,2.39287643]
[1734450754693,1.0888,3926.2,3925.0,2.39287643]
[1734450754992,0.48472073,3926.1,3925.0,2.39287643]
[1734450755178,0.45287346,3926.0,3925.0,2.39287643]
[1734450755385,1.0888,3925.8,3925.0,2.39287643]
[1734450755589,0.22643404,3925.7,3925.0,2.39287643]
[1734450755764,1.0888,3925.8,3925.1,0.23928764]
[1734450756089,1.0888,3925.8,3925.0,2.39287643]
[1734450756090,0.03184413,3925.7,3925.0,2.39287643]
[1734450756391,0.22626826,3925.6,3925.0,2.39287643]
[1734450756587,0.48432142,3925.5,3925.0,2.39287643]
[1734450756802,0.03185046,3925.5,3925.0,2.39287643]
[1734450756951,1.0888,3925.6,3925.0,2.39287643]
[1734450757150,1.57313636,3925.5,3925.0,2.39287643]
[1734450757352,0.60980377,3925.4,3925.0,2.39287643]
[1734450757591,0.58233466,3925.3,3925.0,2.39287643]
[1734450757801,0.12989142,3925.3,3925.0,2.39287643]
[1734450758099,0.03184882,3925.2,3925.0,2.39287643]
[1734450758313,0.22632637,3925.1,3925.0,1.23217643]
[1734450758585,2.48658122,3925.1,3925.0,0.07147643]
[1734450758787,2.88049875,3925.1,3925.0,0.07147643]
[1734450759000,2.19693411,3925.1,3925.0,0.07147643]
[1734450759196,1.83498852,3925.1,3925.0,0.07147643]
[1734450759351,1.65494601,3925.1,3925.0,0.07147643]
[1734450759552,1.88110323,3925.1,3925.0,0.07147643]
[1734450759953,1.88110323,3925.1,3924.7,0.00405148]
[1734450759954,1.6388,3924.8,3924.7,0.00405148]
[1734450760153,3.62843049,3924.8,3924.7,0.00405148]
[1734450760358,3.62814832,3924.8,3924.7,0.00405148]
[1734450760592,2.54834,3924.2,3922.4,0.1622247]
[1734450760779,1.0888,3923.6,3922.4,0.1622247]
[1734450760965,0.03186876,3923.5,3922.4,0.1622247]
[1734450761167,2.91574488,3923.4,3922.4,0.1622247]
[1734450761384,1.0888,3923.2,3922.4,0.1622247]
[1734450761561,1.12067136,3923.7,3922.4,0.1622247]
[1734450761760,5.34458464,3924.8,3922.4,0.1622247]
[1734450761761,1.0888,3924.6,3922.5,0.25493]
[1734450762092,1.21428387,3924.6,3923.9,0.25484]
[1734450762270,1.21428387,3924.6,3922.5,1.1028]
[1734450762271,1.0888,3924.6,3922.9,0.25491]
[1734450762592,1.0888,3924.6,3923.9,0.25484]
[1734450762891,0.1301795,3924.7,3924.2,0.25482]
[1734450763109,0.1301795,3924.7,3923.0,0.42626037]
[1734450763309,0.03185403,3924.6,3923.3,3.0]
[1734450763589,0.1301795,3924.7,3924.3,0.25482]
[1734450763795,0.1301795,3924.7,3923.3,3.0]
[1734450763796,1.12065509,3924.6,3922.4,3.1622247]
[1734450763960,1.12065509,3924.6,3922.6,0.85276684]
[1734450764297,1.0888,3924.6,3923.1,0.25489]
[1734450764600,1.12065561,3924.6,3924.3,0.25482]
[1734450764791,1.12065561,3924.6,3923.7,0.25485]
[1734450765094,0.04624781,3925.1,3924.9,0.25477]
[1734450765472,1.0888,3925.0,3924.9,0.25477]
[1734450765800,2.54785,3924.9,3923.5,0.25487]
[1734450765953,0.40333448,3924.8,3922.4,0.1622247]
[1734450766154,1.0888,3925.0,3922.5,0.012862]
[1734450766388,1.0888,3925.0,3924.8,0.25478]
[1734450766593,1.0888,3925.0,3924.9,0.25478]
[1734450766898,0.04624781,3925.1,3925.0,0.25477]
[1734450767107,0.04624781,3925.1,3923.4,3.0]
[1734450767272,0.04624781,3925.1,3922.6,0.25493]
[1734450767273,0.04624781,3925.1,3925.0,0.25477]
[1734450769325,0.85984781,3925.1,3923.7,3.0]
[1734450769469,1.03453404,3925.0,3924.3,0.25482]
[1734450769661,0.2263477,3924.9,3922.4,4.99011838]
[1734450770005,0.25820298,3924.9,3924.2,0.25482]
[1734450770206,0.3886395,3924.8,3924.2,0.25482]
[1734450770413,0.3886368,3924.8,3923.7,0.25486]
[1734450770562,0.3886368,3924.8,3924.0,0.25483]
[1734450770563,0.25831164,3924.7,3924.0,0.25483]
[1734450770762,0.1621803,3924.8,3922.9,0.25491]
[1734450770763,0.22649098,3924.6,3922.9,0.25491]
[1734450771000,0.1621803,3924.8,3924.3,0.25482]
[1734450771320,0.1621803,3924.8,3924.6,0.2548]
[1734450771469,0.12659097,3925.5,3924.2,0.25482]
[1734450771664,0.22663732,3925.4,3925.0,0.25477]
[1734450772114,0.12659097,3925.5,3925.2,0.25476]
[1734450772429,0.12659097,3925.5,3924.8,0.25478]
[1734450772568,0.12659097,3925.5,3924.5,0.2548]
[1734450772761,0.12659097,3925.5,3925.1,0.25477]
[1734450772994,0.22696434,3925.4,3925.1,0.25477]
[1734450773394,0.22712591,3925.3,3925.1,0.25477]
[1734450773599,0.12659097,3925.5,3925.1,0.25477]
[1734450773780,0.55,3924.7,3921.0,1.3202]
[1734450774085,0.55,3924.1,3921.9,0.25497]
[1734450774285,0.22715518,3924.0,3922.2,0.8202]
[1734450774513,1.17619224,3924.8,3924.3,0.25481]
[1734450774701,0.45451232,3924.7,3924.3,0.25481]
[1734450775020,0.8136,3925.4,3923.4,0.8202]
[1734450775226,0.8136,3925.4,3923.9,0.25484]
[1734450775227,0.4549766,3925.3,3923.9,0.25484]
[1734450775388,0.59767848,3925.2,3924.6,0.25479]
[1734450775583,0.4549766,3925.1,3924.6,0.25479]
[1734450775781,0.14270188,3925.2,3923.4,0.8202]
[1734450775782,0.4549766,3925.0,3923.4,0.8202]
[1734450776018,0.4549766,3924.9,3924.8,0.25478]
[1734450776683,0.14270188,3925.2,3925.0,0.25477]
[1734450776888,0.25930183,3925.1,3923.3,3.0]
[1734450777222,0.55101523,3925.0,3924.4,0.25481]
[1734450777423,0.74688135,3924.9,3924.1,0.25483]
[1734450777639,0.74688135,3924.9,3923.3,3.0]
[1734450777640,0.48725657,3924.8,3923.3,3.0]
[1734450777786,0.48725657,3924.8,3922.9,0.8202]
[1734450777787,1.3636,3924.6,3922.9,0.8202]
[1734450778120,1.50736715,3924.5,3923.1,0.2549]
[1734450778334,0.55,3924.3,3923.2,0.25489]
[1734450778635,1.14307416,3924.2,3923.6,0.25486]
[1734450778822,1.92481315,3924.1,3922.7,0.25492]
[1734450779023,1.11121315,3924.0,3922.7,0.25492]
[1734450779231,1.47550721,3923.9,3922.7,0.25492]
[1734450779569,0.36528174,3924.0,3923.9,0.25484]
[1734450779713,1.1141571,3924.0,3923.9,0.25484]
[1734450780054,0.88579212,3924.0,3923.5,0.25487]
[1734450780338,1.11408602,3923.9,3923.5,0.25487]
[1734450780644,1.47935418,3923.8,3922.9,0.25491]
[1734450780874,1.47935418,3923.7,3922.9,0.25491]
[1734450781021,1.47935418,3923.6,3922.9,0.25491]
[1734450781352,1.47935418,3923.5,3923.4,0.25487]
[1734450781657,1.47935418,3923.5,3922.2,0.8202]
[1734450781658,0.8048,3923.4,3923.1,0.25489]
[1734450781836,1.47935418,3923.3,3922.5,0.25493]
[1734450782037,2.54801,3924.7,3922.2,0.8202]
[1734450782038,0.8048,3925.1,3924.4,0.25481]
[1734450782355,0.83665425,3925.1,3924.4,0.25481]
[1734450782560,0.83665425,3925.1,3923.3,3.8311]
[1734450782857,0.8048,3926.2,3924.5,0.8311]
[1734450783971,0.8048,3926.2,3926.1,0.2547]
[1734450784500,0.03184478,3927.2,3925.6,0.25473]
[1734450784501,0.8048,3927.1,3925.6,0.25473]
[1734450784705,0.8048,3927.1,3926.4,0.25468]
[1734450785021,0.8048,3927.1,3925.6,0.25473]
[1734450785022,0.8048,3927.1,3926.1,0.2547]
[1734450785255,0.8048,3927.1,3926.5,0.25467]
[1734450785412,0.03183716,3927.0,3925.0,4.00769368]
[1734450785756,0.8048,3927.1,3925.1,0.25477]
[1734450786013,0.8048,3927.1,3926.5,0.25467]
[1734450786233,2.54551,3928.5,3927.0,0.25464]
[1734450786371,0.83663251,3928.4,3927.2,0.25463]
[1734450786567,0.83663251,3928.4,3927.3,0.25462]
[1734450786767,0.83663251,3928.4,3926.5,0.25467]
[1734450786768,2.88385125,3928.3,3926.5,0.25467]
[1734450787006,0.03183259,3928.2,3926.1,0.8311]
[1734450787369,0.58183259,3928.2,3926.1,0.8311]
[1734450787667,0.58183259,3928.2,3927.3,0.25462]
[1734450787668,0.03183259,3928.2,3927.3,0.25462]
[1734450787871,0.03183259,3928.2,3926.3,3.0]
[1734450788099,0.8048,3928.4,3927.8,0.25459]
[1734450788305,0.8048,3928.4,3926.4,0.78387937]
[1734450788483,0.8048,3928.4,3927.9,0.25458]
[1734450788688,0.8048,3928.4,3926.5,0.25467]
[1734450788689,0.03182535,3928.3,3926.5,0.25467]
[1734450788867,2.54571,3928.2,3926.0,0.2547]
[1734450789067,0.37006611,3928.1,3926.0,0.2547]
[1734450789268,0.37006611,3928.1,3926.2,0.25469]
[1734450789569,0.03183257,3928.1,3927.4,0.25462]
[1734450789773,0.03183257,3928.1,3927.2,0.25463]
[1734450789978,0.03183075,3928.1,3927.2,0.25463]
[1734450790209,0.8213,3928.0,3925.4,0.8043]
[1734450790377,3.0,3927.2,3925.5,0.25474]
[1734450790575,0.55,3926.5,3925.6,0.25473]
[1734450790886,0.03184219,3926.4,3925.6,0.25473]
[1734450791187,0.03184219,3926.4,3924.1,0.8043]
[1734450791188,0.8213,3926.3,3924.1,0.8043]
[1734450791391,0.55,3926.1,3925.0,0.25477]
[1734450791688,2.54723,3925.9,3924.1,0.8043]
[1734450791901,0.83975726,3925.8,3924.1,0.8043]
[1734450792099,0.8213,3925.6,3924.1,0.8043]
[1734450792308,0.58185046,3925.5,3924.1,0.8043]
[1734450792509,0.58185046,3925.5,3923.8,4.00769368]
[1734450794026,0.22831257,3925.4,3923.8,4.00769368]
[1734450794199,0.8213,3925.6,3923.9,3.48119937]
[1734450794389,0.26022227,3925.5,3923.9,3.48119937]
[1734450794589,0.03184574,3925.4,3924.4,0.25481]
[1734450794924,0.2283655,3925.3,3924.7,0.25479]
[1734450795122,0.48858176,3925.3,3923.9,0.25484]
[1734450795329,0.22836921,3925.2,3923.9,0.25484]
[1734450795528,1.3713,3925.1,3924.2,0.25482]
[1734450795704,0.2178421,3925.0,3924.2,0.25482]
[1734450795900,0.4143577,3925.0,3923.4,0.25488]
[1734450796130,0.22836921,3924.9,3922.8,1.0543]
[1734450796316,0.8213,3925.1,3924.5,0.2548]
[1734450796520,0.2283655,3925.3,3925.0,0.25477]
[1734450796846,0.2283655,3925.3,3925.2,0.25476]
[1734450797324,0.2283655,3925.3,3925.0,0.25477]
[1734450797522,0.2283655,3925.3,3924.1,0.8043]
[1734450797523,0.2283655,3925.3,3924.1,1.05913]
[1734450797843,0.2283655,3925.3,3924.7,0.25479]
[1734450797999,0.2283655,3925.3,3925.2,0.25476]
[1734450801241,0.1715655,3925.3,3925.2,0.25476]
[1734450801618,0.03184467,3926.2,3925.2,0.25476]
[1734450801818,0.58184467,3926.2,3925.2,0.25476]
[1734450802118,0.58184467,3926.2,3924.4,4.00769368]
[1734450802119,0.14031447,3926.1,3924.5,0.2548]
[1734450802305,0.14031447,3926.1,3925.5,0.25473]
[1734450802502,0.14031447,3926.1,3924.5,3.0]
[1734450802706,0.03184325,3926.0,3925.4,0.25474]
[1734450803017,2.5472,3925.9,3924.1,0.8043]
[1734450803219,0.8213,3925.7,3924.7,0.25479]
[1734450803416,0.0318482,3925.6,3924.4,4.00769368]
[1734450803618,1.82739019,3926.3,3926.2,0.25469]
[1734450803818,1.15495255,3926.3,3926.2,0.25469]
[1734450804131,0.8213,3926.3,3925.4,0.25474]
[1734450804331,0.8213,3926.3,3926.2,0.25469]
[1734450805021,0.8213,3926.3,3925.2,0.8043]
[1734450805226,0.8213,3926.3,3925.4,0.25474]
[1734450805436,0.8213,3926.7,3926.3,0.25469]
[1734450805642,0.8213,3926.7,3926.4,0.25468]
[1734450805823,0.8213,3927.5,3926.7,0.25466]
[1734450806028,0.8213,3927.5,3926.2,0.25469]
[1734450806029,0.0318348,3927.4,3926.4,0.25468]
[1734450806230,0.0318348,3927.4,3925.6,4.00769368]
[1734450806442,0.03183561,3927.4,3926.0,0.25471]
[1734450806763,0.03183561,3927.4,3925.7,0.25473]
[1734450806764,0.33992256,3927.3,3926.3,0.25469]
[1734450806970,0.03183563,3927.2,3925.9,0.25471]
[1734450807157,0.33992256,3927.3,3926.6,0.25467]
[1734450807353,0.33992256,3927.3,3925.7,0.25473]
[1734450807354,0.12674941,3927.3,3926.9,0.25465]
[1734450807660,3.36746,3927.5,3926.2,0.25469]
[1734450807859,0.03183562,3927.4,3926.2,0.25469]
[1734450808063,0.03183562,3927.4,3926.3,0.25469]
[1734450808278,0.03183562,3927.4,3924.6,0.2548]
[1734450808279,0.8213,3926.9,3925.0,4.00769368]
[1734450808423,2.5784604,3926.8,3925.7,0.25473]
[1734450808620,0.33997604,3926.7,3925.4,0.25475]
[1734450808815,0.0318404,3926.6,3926.0,0.25471]
[1734450809018,0.8213,3926.9,3926.2,0.25469]
[1734450809555,0.03183842,3926.8,3925.0,4.00769368]
[1734450809752,0.03183842,3926.8,3923.2,2.65237524]
[1734450809753,0.55,3925.5,3922.8,1.04213782]
[1734450809974,2.5479,3924.8,3922.9,0.2549]
[1734450810270,2.5479,3924.8,3922.6,0.8043]
[1734450810271,2.54811,3924.5,3922.6,0.8043]
[1734450810469,2.58006906,3924.4,3923.2,0.25489]
[1734450810679,0.8213,3924.2,3923.2,0.25489]
[1734450811318,0.8213,3924.2,3922.6,0.8043]
[1734450811319,0.55,3924.1,3922.6,0.8043]
[1734450811518,0.85316034,3924.2,3922.6,0.8043]
[1734450811519,0.85316165,3924.2,3923.0,0.2549]
[1734450811731,0.56853561,3924.1,3922.6,0.8043]
[1734450811967,0.55,3924.1,3923.1,0.25489]
[1734450812371,0.55,3924.1,3922.4,0.1622247]
[1734450812372,0.03186165,3924.0,3922.4,0.1622247]
[1734450813180,0.03186165,3924.0,3923.2,0.25489]
[1734450813318,0.55,3924.1,3922.6,0.25493]
[1734450813522,0.55,3924.1,3922.4,0.1622247]
[1734450813523,0.55,3924.1,3923.2,0.25488]
[1734450813767,0.18485871,3924.0,3923.2,0.25488]
[1734450813981,0.18485871,3924.0,3922.4,0.1622247]
[1734450814181,0.55,3923.9,3922.5,0.01286744]
[1734450814385,0.152997,3924.0,3923.6,0.25486]
[1734450814682,0.152997,3924.0,3922.5,0.25493]
[1734450814819,0.8213,3924.2,3922.7,0.25492]
[1734450815020,0.8213,3924.2,3924.1,0.25483]
[1734450815271,0.8213,3924.2,3922.8,0.25491]
[1734450815481,0.03185912,3924.9,3923.2,0.25489]
[1734450815482,0.12519093,3924.6,3923.2,0.25489]
[1734450815774,0.7796,3924.8,3924.5,0.2548]
[1734450815924,0.7796,3924.8,3922.8,3.0]
[1734450816125,0.7796,3924.8,3924.4,0.25481]
[1734450816323,0.7796,3924.8,3924.0,0.25483]
[1734450816626,0.7796,3925.3,3924.1,0.25483]
[1734450816954,0.7796,3925.3,3924.2,0.25482]
[1734450817162,0.7796,3925.3,3924.1,0.25483]
[1734450817376,0.7796,3925.3,3925.2,0.25476]
[1734450817699,0.7796,3925.3,3924.8,0.25478]
[1734450817700,0.12577647,3925.9,3924.8,0.7645]
[1734450818053,0.7796,3926.0,3925.7,0.25472]
[1734450818240,0.0318431,3925.9,3924.8,0.7645]
[1734450818443,0.0318431,3925.9,3924.2,0.7645]
[1734450818659,0.7796,3926.0,3924.2,0.7645]
[1734450818660,0.22837058,3925.8,3925.3,0.25475]
[1734450818856,0.55,3925.9,3925.3,0.25475]
[1734450819052,0.7796,3926.0,3925.6,0.25473]
[1734450819353,0.26031514,3925.9,3924.7,0.25479]
[1734450819683,0.03184298,3925.9,3924.8,0.25479]
[1734450819884,0.45689514,3925.8,3923.6,0.7645]
[1734450820070,0.07809079,3925.9,3924.6,0.2548]
[1734450820071,0.7796,3925.6,3924.6,0.2548]
[1734450820383,0.58835452,3925.5,3924.1,0.25483]
[1734450820580,0.04624781,3925.6,3925.4,0.25475]
[1734450820779,0.04624781,3925.6,3925.5,0.25474]
[1734450820964,0.7796,3927.2,3926.3,0.25469]
[1734450821169,0.53535365,3927.1,3924.8,3.0]
[1734450821489,0.53535365,3927.1,3924.9,0.77721937]
[1734450821490,0.12849613,3926.7,3924.9,0.77721937]
[1734450821696,0.48710727,3926.6,3925.9,0.25471]
[1734450821847,0.48710727,3926.6,3926.1,0.2547]
[1734450821848,0.45726616,3926.5,3926.1,0.2547]
[1734450822040,0.12849613,3926.7,3924.8,0.25479]
[1734450822342,0.22859374,3926.6,3926.3,0.25469]
[1734450822542,0.17774318,3927.0,3924.7,3.91440068]
[1734450822543,0.17774318,3927.0,3924.7,7.92209436]
[1734450822769,0.48692627,3926.9,3926.5,0.25467]
[1734450822968,0.22854445,3926.8,3926.5,0.25467]
[1734450823180,0.22854445,3926.8,3924.9,3.25478]
[1734450823403,0.22854445,3926.8,3926.4,0.25468]
[1734450823676,0.22854445,3926.8,3925.0,0.25477]
[1734450823677,0.02983722,3926.7,3926.3,0.25468]
[1734450823893,0.02983711,3926.9,3926.5,0.25467]
[1734450824043,0.22857791,3926.8,3925.2,0.25476]
[1734450824244,0.02983551,3926.7,3926.6,0.25467]
[1734450824507,0.02983537,3926.8,3926.6,0.25467]
[1734450824679,0.02983537,3926.8,3926.5,0.25467]
[1734450825000,1.23657631,3926.7,3925.7,0.25472]
[1734450825163,0.26033359,3926.6,3924.7,0.7645]
[1734450825490,1.0069409,3926.5,3924.7,0.7645]
[1734450825801,0.55,3926.3,3924.7,0.7645]
[1734450825959,0.48873677,3926.2,3925.5,0.25473]
[1734450826146,0.22845106,3926.1,3925.6,0.25473]
[1734450826557,0.03184366,3926.0,3925.4,0.25475]
[1734450826812,0.55,3925.8,3924.2,0.7573]
[1734450827099,0.55,3925.8,3924.2,0.25482]
[1734450827100,3.35064,3925.5,3924.2,0.25482]
[1734450827296,6.35778803,3925.4,3924.2,0.25482]
[1734450827461,0.45683096,3925.3,3923.4,0.25488]
[1734450827673,0.48868453,3925.2,3923.9,0.25484]
[1734450827989,1.21491076,3925.5,3924.8,0.25478]